[Event "November 21 Early 2023"]
[Site "https://www.chess.com"]
[Date "2023.11.21"]
[Round "1"]
[White "Bommini Mounika Akshaya"]
[Black "Streltsov, Alexey"]
[Result "0-1"]
[Board "196"]
[TimeControl "180+1"]
[WhiteFideId "25019872"]
[BlackFideId "24104434"]
[WhiteElo "2073"]
[BlackElo "2311"]
[WhiteTeam "IND"]
[BlackTeam "ISR"]
[WhiteClock "0:00:03"]
[BlackClock "0:00:37"]

1. d4 {[%clk 0:03:00]}  d5 {[%clk 0:02:58]} 2. Bf4 {[%clk 0:02:56]}  c5 {[%clk 0:02:58]} 3. e3 {[%clk 0:02:56]}  Nc6 {[%clk 0:02:58]} 4. c3 {[%clk 0:02:55]}  Bf5 {[%clk 0:02:58]} 5. Nd2 {[%clk 0:02:54]}  e6 {[%clk 0:02:58]} 6. Ngf3 {[%clk 0:02:51]}  Nf6 {[%clk 0:02:58]} 7. h3 {[%clk 0:02:49]}  cxd4 {[%clk 0:02:55]} 8. exd4 {[%clk 0:02:44]}  h6 {[%clk 0:02:55]} 9. Be2 {[%clk 0:02:42]}  Bd6 {[%clk 0:02:56]} 10. Ne5 {[%clk 0:02:41]}  Qc7 {[%clk 0:02:40]} 11. Ndf3 {[%clk 0:02:35]}  Nd7 {[%clk 0:02:40]} 12. Nxc6 {[%clk 0:02:02]}  Bxf4 {[%clk 0:02:39]} 13. Nb4 {[%clk 0:02:03]}  O-O-O {[%clk 0:02:28]} 14. Nd3 {[%clk 0:02:00]}  Bd6 {[%clk 0:02:20]} 15. O-O {[%clk 0:01:59]}  Kb8 {[%clk 0:02:19]} 16. Qb3 {[%clk 0:01:52]}  g5 {[%clk 0:02:19]} 17. Nd2 {[%clk 0:01:31]}  g4 {[%clk 0:02:03]} 18. hxg4 {[%clk 0:01:30]}  Bxd3 {[%clk 0:02:02]} 19. Bxd3 {[%clk 0:01:30]}  Rdg8 {[%clk 0:02:03]} 20. Be2 {[%clk 0:01:18]}  h5 {[%clk 0:02:02]} 21. gxh5 {[%clk 0:01:16]}  Nf6 {[%clk 0:01:58]} 22. Rfe1 {[%clk 0:00:50]}  Nxh5 {[%clk 0:01:55]} 23. Bxh5 {[%clk 0:00:41]}  Rxh5 {[%clk 0:01:56]} 24. Nf3 {[%clk 0:00:40]}  Qe7 {[%clk 0:01:47]} 25. c4 {[%clk 0:00:29]}  Qf6 {[%clk 0:01:46]} 26. Qe3 {[%clk 0:00:26]}  Qg6 {[%clk 0:01:30]} 27. g3 {[%clk 0:00:15]}  Bxg3 {[%clk 0:01:26]} 28. Kf1 {[%clk 0:00:16]}  Rh1+ {[%clk 0:01:10]} 29. Ke2 {[%clk 0:00:16]}  Qc2+ {[%clk 0:01:10]} 30. Qd2 {[%clk 0:00:16]}  Qxc4+ {[%clk 0:01:10]} 31. Qd3 {[%clk 0:00:15]}  Qxd3+ {[%clk 0:01:03]} 32. Kxd3 {[%clk 0:00:16]}  Rxe1 {[%clk 0:01:03]} 33. Rxe1 {[%clk 0:00:16]}  Bxf2 {[%clk 0:01:04]} 34. Rf1 {[%clk 0:00:16]}  Bg3 {[%clk 0:01:02]} 35. Rg1 {[%clk 0:00:16]}  Rg7 {[%clk 0:01:03]} 36. Ke3 {[%clk 0:00:15]}  Kc7 {[%clk 0:00:59]} 37. Rg2 {[%clk 0:00:15]}  Kd6 {[%clk 0:00:57]} 38. Rg1 {[%clk 0:00:15]}  b5 {[%clk 0:00:56]} 39. Ke2 {[%clk 0:00:15]}  f6 {[%clk 0:00:51]} 40. Ke3 {[%clk 0:00:16]}  e5 {[%clk 0:00:51]} 41. dxe5+ {[%clk 0:00:15]}  fxe5 {[%clk 0:00:52]} 42. Ke2 {[%clk 0:00:14]}  d4 {[%clk 0:00:49]} 43. Nh4 {[%clk 0:00:12]}  Ke6 {[%clk 0:00:43]} 44. Nf3 {[%clk 0:00:12]}  Kf6 {[%clk 0:00:37]} 45. Nd2 {[%clk 0:00:12]}  Bf4 {[%clk 0:00:37]} 46. Ne4+ {[%clk 0:00:12]}  Kf7 {[%clk 0:00:36]} 47. Nd6+ {[%clk 0:00:13]}  Kf8 {[%clk 0:00:36]} 48. Rxg7 {[%clk 0:00:12]}  Kxg7 {[%clk 0:00:37]} 49. Nxb5 {[%clk 0:00:12]}  e4 {[%clk 0:00:37]} 50. Nxd4 {[%clk 0:00:11]}  Kf6 {[%clk 0:00:37]} 51. Nc6 {[%clk 0:00:11]}  a6 {[%clk 0:00:36]} 52. Nb4 {[%clk 0:00:11]}  a5 {[%clk 0:00:36]} 53. Nc6 {[%clk 0:00:11]}  Bc7 {[%clk 0:00:36]} 54. a3 {[%clk 0:00:10]}  Ke6 {[%clk 0:00:35]} 55. Ke3 {[%clk 0:00:10]}  Kd5 {[%clk 0:00:36]} 56. Nxa5 {[%clk 0:00:10]}  Bxa5 {[%clk 0:00:35]} 57. b4 {[%clk 0:00:10]}  Bb6+ {[%clk 0:00:36]} 58. Ke2 {[%clk 0:00:10]}  Kc4 {[%clk 0:00:36]} 59. Kd2 {[%clk 0:00:08]}  Kb3 {[%clk 0:00:37]} 60. Ke2 {[%clk 0:00:03]}  Kxa3 {[%clk 0:00:37]} 0-1

[Event "November 21 Early 2023"]
[Site "https://www.chess.com"]
[Date "2023.11.21"]
[Round "1"]
[White "Rutten, Alexander"]
[Black "Chen, Justin"]
[Result "0-1"]
[Board "200"]
[TimeControl "180+1"]
[WhiteFideId "1052063"]
[BlackFideId "2098199"]
[WhiteElo "2124"]
[BlackElo "2289"]
[WhiteTeam "NED"]
[BlackTeam "USA"]
[WhiteClock "0:00:19"]
[BlackClock "0:00:04"]

1. e4 {[%clk 0:02:55]}  e5 {[%clk 0:02:57]} 2. Nf3 {[%clk 0:02:55]}  Nc6 {[%clk 0:02:57]} 3. Bb5 {[%clk 0:02:55]}  f5 {[%clk 0:02:56]} 4. d3 {[%clk 0:02:55]}  d6 {[%clk 0:02:55]} 5. Nc3 {[%clk 0:02:52]}  Nf6 {[%clk 0:02:54]} 6. Bg5 {[%clk 0:02:49]}  Be7 {[%clk 0:02:54]} 7. O-O {[%clk 0:02:48]}  O-O {[%clk 0:02:53]} 8. Bxc6 {[%clk 0:02:46]}  bxc6 {[%clk 0:02:53]} 9. Re1 {[%clk 0:02:47]}  Kh8 {[%clk 0:02:47]} 10. d4 {[%clk 0:02:44]}  fxe4 {[%clk 0:02:42]} 11. Nxe4 {[%clk 0:02:44]}  Nxe4 {[%clk 0:01:52]} 12. Bxe7 {[%clk 0:02:41]}  Qxe7 {[%clk 0:01:53]} 13. Rxe4 {[%clk 0:02:41]}  Bf5 {[%clk 0:01:53]} 14. Re3 {[%clk 0:02:30]}  e4 {[%clk 0:01:54]} 15. Nd2 {[%clk 0:02:27]}  Rae8 {[%clk 0:01:36]} 16. Nf1 {[%clk 0:02:23]}  Qh4 {[%clk 0:01:23]} 17. Qd2 {[%clk 0:02:19]}  Bg6 {[%clk 0:01:09]} 18. Rh3 {[%clk 0:02:17]}  Qf6 {[%clk 0:01:04]} 19. Re1 {[%clk 0:01:56]}  Re7 {[%clk 0:00:59]} 20. Ne3 {[%clk 0:01:50]}  Ref7 {[%clk 0:00:58]} 21. Rf1 {[%clk 0:01:50]}  Qg5 {[%clk 0:00:37]} 22. Rg3 {[%clk 0:01:48]}  Qb5 {[%clk 0:00:37]} 23. c4 {[%clk 0:01:46]}  Qa4 {[%clk 0:00:32]} 24. b3 {[%clk 0:01:46]}  Qa3 {[%clk 0:00:33]} 25. d5 {[%clk 0:01:42]}  c5 {[%clk 0:00:30]} 26. Nd1 {[%clk 0:00:50]}  Kg8 {[%clk 0:00:22]} 27. Nc3 {[%clk 0:00:50]}  a6 {[%clk 0:00:22]} 28. Re3 {[%clk 0:00:50]}  Rf4 {[%clk 0:00:13]} 29. Rfe1 {[%clk 0:00:48]}  Rxf2 {[%clk 0:00:11]} 30. Qxf2 {[%clk 0:00:47]}  Rxf2 {[%clk 0:00:12]} 31. Kxf2 {[%clk 0:00:48]}  h6 {[%clk 0:00:04]} 32. Nxe4 {[%clk 0:00:47]}  Bxe4 {[%clk 0:00:03]} 33. Rxe4 {[%clk 0:00:47]}  Qxa2+ {[%clk 0:00:04]} 34. Kg3 {[%clk 0:00:42]}  Qxb3+ {[%clk 0:00:05]} 35. R1e3 {[%clk 0:00:42]}  Qc2 {[%clk 0:00:02]} 36. Rg4 {[%clk 0:00:37]}  Kf7 {[%clk 0:00:02]} 37. Rf3+ {[%clk 0:00:37]}  Kg8 {[%clk 0:00:02]} 38. Re3 {[%clk 0:00:36]}  a5 {[%clk 0:00:02]} 39. Re7 {[%clk 0:00:27]}  Qc3+ {[%clk 0:00:03]} 40. Kh4 {[%clk 0:00:19]}  Qf6+ {[%clk 0:00:03]} 41. Kh5 {[%clk 0:00:19]}  Qxe7 {[%clk 0:00:04]} 42. h4 {[%clk 0:00:19]}  Qf7+ {[%clk 0:00:03]} 43. Rg6 {[%clk 0:00:19]}  Qf5+ {[%clk 0:00:03]} 44. Rg5 {[%clk 0:00:19]}  hxg5 {[%clk 0:00:02]} 45. hxg5 {[%clk 0:00:20]}  Qe4 {[%clk 0:00:02]} 46. g4 {[%clk 0:00:19]}  Kf7 {[%clk 0:00:01]} 47. g6+ {[%clk 0:00:19]}  Qxg6+ {[%clk 0:00:01]} 48. Kh4 {[%clk 0:00:19]}  a4 {[%clk 0:00:02]} 49. g5 {[%clk 0:00:20]}  a3 {[%clk 0:00:03]} 50. Kg4 {[%clk 0:00:20]}  a2 {[%clk 0:00:04]} 51. Kh4 {[%clk 0:00:19]}  a1=Q {[%clk 0:00:04]} 0-1

[Event "November 21 Early 2023"]
[Site "https://www.chess.com"]
[Date "2023.11.21"]
[Round "1"]
[White "JuniorJumper"]
[Black "Pasmendjambvirgulptipon98"]
[Result "1-0"]
[Board "201"]
[TimeControl "180+1"]
[WhiteElo "2569"]
[BlackElo "2260"]
[WhiteClock "0:00:17"]
[BlackClock "0:00:00"]

1. d4 {[%clk 0:02:57]}  d5 {[%clk 0:02:59]} 2. Nf3 {[%clk 0:02:56]}  Nf6 {[%clk 0:02:59]} 3. Bf4 {[%clk 0:02:57]}  Bf5 {[%clk 0:02:57]} 4. e3 {[%clk 0:02:57]}  e6 {[%clk 0:02:55]} 5. Nbd2 {[%clk 0:02:56]}  Be7 {[%clk 0:02:52]} 6. Be2 {[%clk 0:02:54]}  Nh5 {[%clk 0:02:51]} 7. Be5 {[%clk 0:02:53]}  Nd7 {[%clk 0:02:42]} 8. O-O {[%clk 0:02:46]}  f6 {[%clk 0:02:39]} 9. Nh4 {[%clk 0:02:37]}  g6 {[%clk 0:02:22]} 10. Nxf5 {[%clk 0:02:13]}  exf5 {[%clk 0:02:16]} 11. Bf4 {[%clk 0:01:57]}  Nxf4 {[%clk 0:02:11]} 12. exf4 {[%clk 0:01:58]}  Bd6 {[%clk 0:02:11]} 13. g3 {[%clk 0:01:58]}  c6 {[%clk 0:02:04]} 14. Re1 {[%clk 0:01:57]}  Kf7 {[%clk 0:02:00]} 15. c3 {[%clk 0:01:53]}  Qc7 {[%clk 0:01:59]} 16. Qb3 {[%clk 0:01:48]}  h5 {[%clk 0:01:53]} 17. Bf3 {[%clk 0:01:45]}  Nb6 {[%clk 0:01:41]} 18. a4 {[%clk 0:01:41]}  a5 {[%clk 0:01:39]} 19. Re3 {[%clk 0:01:28]}  g5 {[%clk 0:01:23]} 20. fxg5 {[%clk 0:01:25]}  fxg5 {[%clk 0:01:22]} 21. Rae1 {[%clk 0:01:18]}  g4 {[%clk 0:01:13]} 22. Bg2 {[%clk 0:01:11]}  Rae8 {[%clk 0:01:02]} 23. Qc2 {[%clk 0:01:04]}  Qd7 {[%clk 0:00:57]} 24. f4 {[%clk 0:01:03]}  h4 {[%clk 0:00:45]} 25. Rxe8 {[%clk 0:00:46]}  Rxe8 {[%clk 0:00:46]} 26. Rxe8 {[%clk 0:00:46]}  Kxe8 {[%clk 0:00:45]} 27. Bf1 {[%clk 0:00:47]}  Qe6 {[%clk 0:00:37]} 28. Qd3 {[%clk 0:00:39]}  Nxa4 {[%clk 0:00:30]} 29. b3 {[%clk 0:00:35]}  Nb6 {[%clk 0:00:26]} 30. c4 {[%clk 0:00:31]}  Bb4 {[%clk 0:00:23]} 31. c5 {[%clk 0:00:30]}  Bxd2 {[%clk 0:00:19]} 32. Qxd2 {[%clk 0:00:31]}  Nd7 {[%clk 0:00:17]} 33. Kf2 {[%clk 0:00:28]}  Nf6 {[%clk 0:00:15]} 34. Bd3 {[%clk 0:00:29]}  h3 {[%clk 0:00:14]} 35. Qxa5 {[%clk 0:00:24]}  Ne4+ {[%clk 0:00:10]} 36. Kf1 {[%clk 0:00:21]}  Nxg3+ {[%clk 0:00:04]} 37. hxg3 {[%clk 0:00:22]}  h2 {[%clk 0:00:04]} 38. Kg2 {[%clk 0:00:20]}  Qe3 {[%clk 0:00:03]} 39. Qa8+ {[%clk 0:00:15]}  Ke7 {[%clk 0:00:04]} 40. Qxb7+ {[%clk 0:00:16]}  Kd8 {[%clk 0:00:04]} 41. Qb8+ {[%clk 0:00:16]}  Kd7 {[%clk 0:00:03]} 42. Qd6+ {[%clk 0:00:17]}  Kc8 {[%clk 0:00:00]} 43. Bxf5+ {[%clk 0:00:17]} 1-0

[Event "November 21 Early 2023"]
[Site "https://www.chess.com"]
[Date "2023.11.21"]
[Round "1"]
[White "San Thit Lwin"]
[Black "Leyva Proenza, Richard"]
[Result "1/2-1/2"]
[Board "202"]
[TimeControl "180+1"]
[WhiteFideId "13001272"]
[BlackFideId "3500985"]
[WhiteElo "2232"]
[BlackElo "2322"]
[WhiteTeam "MYA"]
[BlackTeam "VEN"]
[WhiteClock "0:00:08"]
[BlackClock "0:00:07"]

1. Nf3 {[%clk 0:02:59]}  Nf6 {[%clk 0:02:59]} 2. c4 {[%clk 0:03:00]}  g6 {[%clk 0:03:00]} 3. Nc3 {[%clk 0:03:00]}  Bg7 {[%clk 0:03:00]} 4. e4 {[%clk 0:03:01]}  d6 {[%clk 0:03:01]} 5. d4 {[%clk 0:03:02]}  O-O {[%clk 0:03:01]} 6. Be2 {[%clk 0:03:03]}  Bg4 {[%clk 0:03:01]} 7. O-O {[%clk 0:03:03]}  Nc6 {[%clk 0:03:01]} 8. Be3 {[%clk 0:03:04]}  Nd7 {[%clk 0:03:02]} 9. d5 {[%clk 0:03:01]}  Bxf3 {[%clk 0:03:02]} 10. Bxf3 {[%clk 0:03:01]}  Na5 {[%clk 0:03:02]} 11. Be2 {[%clk 0:02:54]}  Bxc3 {[%clk 0:02:58]} 12. bxc3 {[%clk 0:02:53]}  c5 {[%clk 0:02:59]} 13. Qa4 {[%clk 0:02:39]}  b6 {[%clk 0:02:56]} 14. f4 {[%clk 0:02:34]}  e6 {[%clk 0:02:56]} 15. dxe6 {[%clk 0:02:28]}  fxe6 {[%clk 0:02:56]} 16. Rad1 {[%clk 0:02:28]}  Qc7 {[%clk 0:02:54]} 17. e5 {[%clk 0:02:22]}  Rad8 {[%clk 0:02:36]} 18. Rxd6 {[%clk 0:02:15]}  Nb8 {[%clk 0:02:37]} 19. Rfd1 {[%clk 0:02:10]}  Rde8 {[%clk 0:02:35]} 20. Bg4 {[%clk 0:02:07]}  Qf7 {[%clk 0:02:35]} 21. g3 {[%clk 0:02:00]}  h5 {[%clk 0:02:35]} 22. Bh3 {[%clk 0:01:45]}  Nb7 {[%clk 0:02:34]} 23. R6d2 {[%clk 0:01:38]}  Qc7 {[%clk 0:02:31]} 24. Qc2 {[%clk 0:01:15]}  Kg7 {[%clk 0:02:23]} 25. Bg2 {[%clk 0:01:08]}  Na5 {[%clk 0:02:21]} 26. Qe4 {[%clk 0:01:06]}  Re7 {[%clk 0:02:10]} 27. h4 {[%clk 0:01:06]}  Qc8 {[%clk 0:02:09]} 28. Qa8 {[%clk 0:01:02]}  Nbc6 {[%clk 0:02:03]} 29. Qxc8 {[%clk 0:01:00]}  Rxc8 {[%clk 0:02:04]} 30. Bf1 {[%clk 0:00:55]}  Rcc7 {[%clk 0:01:59]} 31. Rd6 {[%clk 0:00:52]}  Kf7 {[%clk 0:01:59]} 32. Kf2 {[%clk 0:00:50]}  Nb7 {[%clk 0:01:59]} 33. R6d2 {[%clk 0:00:48]}  Ke8 {[%clk 0:01:52]} 34. Kf3 {[%clk 0:00:47]}  Nca5 {[%clk 0:01:52]} 35. Ke4 {[%clk 0:00:46]}  Rh7 {[%clk 0:01:42]} 36. Be2 {[%clk 0:00:46]}  Ke7 {[%clk 0:01:39]} 37. Rg1 {[%clk 0:00:42]}  Rd7 {[%clk 0:01:39]} 38. Rxd7+ {[%clk 0:00:41]}  Kxd7 {[%clk 0:01:40]} 39. Rd1+ {[%clk 0:00:41]}  Ke7 {[%clk 0:01:39]} 40. Bd3 {[%clk 0:00:40]}  Rh8 {[%clk 0:01:33]} 41. Kf3 {[%clk 0:00:38]}  Rg8 {[%clk 0:01:31]} 42. Be2 {[%clk 0:00:37]}  Nd8 {[%clk 0:01:21]} 43. g4 {[%clk 0:00:36]}  hxg4+ {[%clk 0:01:20]} 44. Kxg4 {[%clk 0:00:36]}  Nf7 {[%clk 0:01:21]} 45. Rd2 {[%clk 0:00:32]}  Nh6+ {[%clk 0:01:21]} 46. Kf3 {[%clk 0:00:31]}  Nf5 {[%clk 0:01:22]} 47. Bf2 {[%clk 0:00:31]}  Rh8 {[%clk 0:01:22]} 48. Kg4 {[%clk 0:00:29]}  Nc6 {[%clk 0:01:09]} 49. Kg5 {[%clk 0:00:28]}  Rg8 {[%clk 0:00:51]} 50. Bf1 {[%clk 0:00:27]}  Na5 {[%clk 0:00:51]} 51. Bg1 {[%clk 0:00:25]}  Rh8 {[%clk 0:00:48]} 52. Bf2 {[%clk 0:00:25]}  Rg8 {[%clk 0:00:47]} 53. Kg4 {[%clk 0:00:24]}  Nb7 {[%clk 0:00:42]} 54. Kg5 {[%clk 0:00:23]}  Nd8 {[%clk 0:00:41]} 55. a4 {[%clk 0:00:21]}  Nf7+ {[%clk 0:00:34]} 56. Kg4 {[%clk 0:00:21]}  Rb8 {[%clk 0:00:32]} 57. Rb2 {[%clk 0:00:20]}  Rc8 {[%clk 0:00:16]} 58. a5 {[%clk 0:00:19]}  N7h6+ {[%clk 0:00:14]} 59. Kf3 {[%clk 0:00:19]}  Rc6 {[%clk 0:00:10]} 60. axb6 {[%clk 0:00:19]}  axb6 {[%clk 0:00:10]} 61. Ra2 {[%clk 0:00:19]}  Kd7 {[%clk 0:00:10]} 62. Ra7+ {[%clk 0:00:18]}  Rc7 {[%clk 0:00:11]} 63. Rxc7+ {[%clk 0:00:17]}  Kxc7 {[%clk 0:00:11]} 64. Be2 {[%clk 0:00:15]}  Kb7 {[%clk 0:00:11]} 65. Bd3 {[%clk 0:00:14]}  Ka6 {[%clk 0:00:11]} 66. Bxf5 {[%clk 0:00:14]}  exf5 {[%clk 0:00:05]} 67. Be3 {[%clk 0:00:13]}  Kb7 {[%clk 0:00:05]} 68. Bd2 {[%clk 0:00:13]}  Kc6 {[%clk 0:00:06]} 69. Be1 {[%clk 0:00:13]}  Kd7 {[%clk 0:00:06]} 70. Bf2 {[%clk 0:00:13]}  Ke6 {[%clk 0:00:06]} 71. Be1 {[%clk 0:00:14]}  Nf7 {[%clk 0:00:06]} 72. Kg3 {[%clk 0:00:12]}  Nd8 {[%clk 0:00:07]} 73. h5 {[%clk 0:00:13]}  gxh5 {[%clk 0:00:07]} 74. Kh4 {[%clk 0:00:13]}  Nc6 {[%clk 0:00:07]} 75. Kxh5 {[%clk 0:00:13]}  Na5 {[%clk 0:00:08]} 76. Kg6 {[%clk 0:00:13]}  Nxc4 {[%clk 0:00:09]} 77. Kg5 {[%clk 0:00:13]}  Ne3 {[%clk 0:00:09]} 78. Bd2 {[%clk 0:00:13]}  Nc4 {[%clk 0:00:08]} 79. Be1 {[%clk 0:00:13]}  Nb2 {[%clk 0:00:07]} 80. Kh4 {[%clk 0:00:13]}  b5 {[%clk 0:00:07]} 81. Kg3 {[%clk 0:00:12]}  Nc4 {[%clk 0:00:06]} 82. Kf3 {[%clk 0:00:12]}  Nb6 {[%clk 0:00:07]} 83. Ke2 {[%clk 0:00:12]}  Nd5 {[%clk 0:00:07]} 84. Bd2 {[%clk 0:00:11]}  c4 {[%clk 0:00:07]} 85. Kd1 {[%clk 0:00:11]}  Kd7 {[%clk 0:00:07]} 86. Ke2 {[%clk 0:00:12]}  Kc6 {[%clk 0:00:07]} 87. Kd1 {[%clk 0:00:12]}  Kc5 {[%clk 0:00:08]} 88. Kc2 {[%clk 0:00:12]}  b4 {[%clk 0:00:08]} 89. cxb4+ {[%clk 0:00:13]}  Kd4 {[%clk 0:00:06]} 90. b5 {[%clk 0:00:12]}  c3 {[%clk 0:00:07]} 91. Be1 {[%clk 0:00:09]}  Kc4 {[%clk 0:00:07]} 92. b6 {[%clk 0:00:09]}  Nxb6 {[%clk 0:00:05]} 93. Bxc3 {[%clk 0:00:10]}  Nd5 {[%clk 0:00:06]} 94. Bd2 {[%clk 0:00:10]}  Kd4 {[%clk 0:00:07]} 95. Kd1 {[%clk 0:00:10]}  Kd3 {[%clk 0:00:08]} 96. Ke1 {[%clk 0:00:10]}  Ke4 {[%clk 0:00:07]} 97. Ke2 {[%clk 0:00:10]}  Nc7 {[%clk 0:00:08]} 98. Bc1 {[%clk 0:00:10]}  Ne6 {[%clk 0:00:09]} 99. Kd1 {[%clk 0:00:10]}  Kd5 {[%clk 0:00:05]} 100. Kc2 {[%clk 0:00:11]}  Ke4 {[%clk 0:00:05]} 101. Kc3 {[%clk 0:00:11]}  Kd5 {[%clk 0:00:06]} 102. Kb4 {[%clk 0:00:11]}  Ng7 {[%clk 0:00:05]} 103. Kb5 {[%clk 0:00:11]}  Ne6 {[%clk 0:00:06]} 104. Kb6 {[%clk 0:00:11]}  Nd4 {[%clk 0:00:07]} 105. Kc7 {[%clk 0:00:10]}  Ke6 {[%clk 0:00:07]} 106. Kd8 {[%clk 0:00:10]}  Ne2 {[%clk 0:00:08]} 107. Bd2 {[%clk 0:00:09]}  Nd4 {[%clk 0:00:06]} 108. Kc7 {[%clk 0:00:09]}  Nf3 {[%clk 0:00:05]} 109. Bc1 {[%clk 0:00:09]}  Nxe5 {[%clk 0:00:04]} 110. fxe5 {[%clk 0:00:08]}  Kxe5 {[%clk 0:00:05]} 111. Bd2 {[%clk 0:00:07]}  Ke4 {[%clk 0:00:06]} 112. Bc1 {[%clk 0:00:07]}  f4 {[%clk 0:00:07]} 113. Bxf4 {[%clk 0:00:08]} 1/2-1/2

[Event "November 21 Early 2023"]
[Site "https://www.chess.com"]
[Date "2023.11.21"]
[Round "1"]
[White "Derjabin, Ilja"]
[Black "Alhadad, Mahmoud"]
[Result "0-1"]
[Board "203"]
[TimeControl "180+1"]
[WhiteFideId "14104768"]
[BlackFideId "11501863"]
[WhiteElo "2309"]
[BlackElo "1955"]
[WhiteTeam "UKR"]
[BlackTeam "PLE"]
[WhiteClock "0:00:06"]
[BlackClock "0:00:05"]

1. d4 {[%clk 0:02:56]}  d5 {[%clk 0:02:58]} 2. c4 {[%clk 0:02:56]}  Nc6 {[%clk 0:02:58]} 3. Nf3 {[%clk 0:02:55]}  Bg4 {[%clk 0:02:56]} 4. cxd5 {[%clk 0:02:51]}  Bxf3 {[%clk 0:02:53]} 5. dxc6 {[%clk 0:02:47]}  Bxc6 {[%clk 0:02:52]} 6. Nc3 {[%clk 0:02:48]}  Nf6 {[%clk 0:02:46]} 7. Bg5 {[%clk 0:02:33]}  e6 {[%clk 0:02:27]} 8. e4 {[%clk 0:02:30]}  Be7 {[%clk 0:02:28]} 9. e5 {[%clk 0:02:07]}  Nd5 {[%clk 0:02:21]} 10. Bxe7 {[%clk 0:02:08]}  Qxe7 {[%clk 0:02:20]} 11. Be2 {[%clk 0:02:08]}  Nf4 {[%clk 0:02:06]} 12. Bf3 {[%clk 0:02:06]}  Nxg2+ {[%clk 0:01:59]} 13. Kf1 {[%clk 0:02:01]}  Nh4 {[%clk 0:01:29]} 14. Bxc6+ {[%clk 0:01:58]}  bxc6 {[%clk 0:01:30]} 15. Qa4 {[%clk 0:01:52]}  O-O {[%clk 0:01:09]} 16. Qxc6 {[%clk 0:01:51]}  Rab8 {[%clk 0:01:09]} 17. b3 {[%clk 0:01:50]}  Rfd8 {[%clk 0:01:09]} 18. Rd1 {[%clk 0:01:47]}  Nf5 {[%clk 0:01:07]} 19. Ne2 {[%clk 0:01:45]}  Qh4 {[%clk 0:01:00]} 20. Rg1 {[%clk 0:01:30]}  Nxd4 {[%clk 0:00:32]} 21. Nxd4 {[%clk 0:01:26]}  Rxd4 {[%clk 0:00:32]} 22. Rxd4 {[%clk 0:01:15]}  Qxd4 {[%clk 0:00:33]} 23. Rg3 {[%clk 0:00:58]}  Qxe5 {[%clk 0:00:24]} 24. Rd3 {[%clk 0:00:57]}  Qxh2 {[%clk 0:00:13]} 25. Qb7 {[%clk 0:00:47]}  Rf8 {[%clk 0:00:10]} 26. Qxa7 {[%clk 0:00:47]}  Qh1+ {[%clk 0:00:09]} 27. Ke2 {[%clk 0:00:47]}  Qe4+ {[%clk 0:00:09]} 28. Qe3 {[%clk 0:00:47]}  Qxe3+ {[%clk 0:00:07]} 29. fxe3 {[%clk 0:00:47]}  Ra8 {[%clk 0:00:06]} 30. a4 {[%clk 0:00:46]}  h5 {[%clk 0:00:07]} 31. Rc3 {[%clk 0:00:45]}  Rb8 {[%clk 0:00:06]} 32. Kd3 {[%clk 0:00:34]}  h4 {[%clk 0:00:06]} 33. Kc4 {[%clk 0:00:24]}  g5 {[%clk 0:00:06]} 34. a5 {[%clk 0:00:24]}  h3 {[%clk 0:00:06]} 35. e4 {[%clk 0:00:24]}  g4 {[%clk 0:00:04]} 36. Kd4 {[%clk 0:00:22]}  f5 {[%clk 0:00:01]} 37. exf5 {[%clk 0:00:22]}  exf5 {[%clk 0:00:02]} 38. Ke5 {[%clk 0:00:23]}  Rf8 {[%clk 0:00:02]} 39. a6 {[%clk 0:00:23]}  h2 {[%clk 0:00:02]} 40. Rc1 {[%clk 0:00:21]}  g3 {[%clk 0:00:03]} 41. a7 {[%clk 0:00:17]}  g2 {[%clk 0:00:03]} 42. Ke6 {[%clk 0:00:06]}  g1=Q {[%clk 0:00:03]} 43. Rxc7 {[%clk 0:00:07]}  Qe3+ {[%clk 0:00:02]} 44. Kd7 {[%clk 0:00:07]}  Qd4+ {[%clk 0:00:03]} 45. Kc6 {[%clk 0:00:08]}  Qc3+ {[%clk 0:00:03]} 46. Kb7 {[%clk 0:00:08]}  Qxc7+ {[%clk 0:00:03]} 47. Kxc7 {[%clk 0:00:08]}  h1=Q {[%clk 0:00:04]} 48. b4 {[%clk 0:00:07]}  Qa8 {[%clk 0:00:04]} 49. b5 {[%clk 0:00:06]}  Rf7+ {[%clk 0:00:05]} 0-1

[Event "November 21 Early 2023"]
[Site "https://www.chess.com"]
[Date "2023.11.21"]
[Round "1"]
[White "Kovalyov_Eduard"]
[Black "Mirzanurov, Bulat"]
[Result "0-1"]
[Board "205"]
[TimeControl "180+1"]
[BlackFideId "4184521"]
[WhiteElo "2563"]
[BlackElo "2005"]
[BlackTeam "RUS"]
[WhiteClock "0:00:09"]
[BlackClock "0:00:24"]

1. Nf3 {[%clk 0:03:00]}  d5 {[%clk 0:02:55]} 2. g3 {[%clk 0:03:00]}  Nf6 {[%clk 0:02:55]} 3. Bg2 {[%clk 0:03:00]}  c5 {[%clk 0:02:55]} 4. O-O {[%clk 0:03:00]}  e6 {[%clk 0:02:54]} 5. d3 {[%clk 0:03:01]}  Nc6 {[%clk 0:02:53]} 6. Nc3 {[%clk 0:03:01]}  g6 {[%clk 0:02:53]} 7. e4 {[%clk 0:03:01]}  Bg7 {[%clk 0:02:52]} 8. a4 {[%clk 0:02:59]}  O-O {[%clk 0:02:52]} 9. Bf4 {[%clk 0:02:54]}  d4 {[%clk 0:02:48]} 10. Nb5 {[%clk 0:02:51]}  Ne8 {[%clk 0:02:38]} 11. Bg5 {[%clk 0:02:40]}  f6 {[%clk 0:02:36]} 12. Bd2 {[%clk 0:02:37]}  e5 {[%clk 0:02:34]} 13. Nh4 {[%clk 0:02:34]}  Be6 {[%clk 0:02:33]} 14. f4 {[%clk 0:02:33]}  a6 {[%clk 0:02:24]} 15. Na3 {[%clk 0:02:32]}  exf4 {[%clk 0:02:15]} 16. gxf4 {[%clk 0:02:27]}  f5 {[%clk 0:02:09]} 17. Qe1 {[%clk 0:02:25]}  Bf6 {[%clk 0:01:52]} 18. Nf3 {[%clk 0:02:24]}  Nc7 {[%clk 0:01:46]} 19. Nc4 {[%clk 0:02:16]}  fxe4 {[%clk 0:01:35]} 20. Qxe4 {[%clk 0:02:15]}  Bf5 {[%clk 0:01:22]} 21. Qe2 {[%clk 0:02:12]}  Re8 {[%clk 0:01:21]} 22. Nfe5 {[%clk 0:02:06]}  Nd5 {[%clk 0:01:17]} 23. Qf3 {[%clk 0:01:56]}  Nce7 {[%clk 0:01:10]} 24. a5 {[%clk 0:01:46]}  Qc7 {[%clk 0:00:58]} 25. b3 {[%clk 0:01:43]}  Kg7 {[%clk 0:00:57]} 26. Rfe1 {[%clk 0:01:41]}  Rad8 {[%clk 0:00:54]} 27. Qf2 {[%clk 0:01:33]}  Nc6 {[%clk 0:00:50]} 28. Nxc6 {[%clk 0:01:30]}  bxc6 {[%clk 0:00:47]} 29. Qg3 {[%clk 0:01:21]}  Ne3 {[%clk 0:00:39]} 30. Nxe3 {[%clk 0:00:57]}  dxe3 {[%clk 0:00:39]} 31. Bxe3 {[%clk 0:00:58]}  Rxe3 {[%clk 0:00:35]} 32. Rxe3 {[%clk 0:00:52]}  Bxa1 {[%clk 0:00:35]} 33. Qe1 {[%clk 0:00:53]}  Bd4 {[%clk 0:00:35]} 34. Kh1 {[%clk 0:00:53]}  Bxe3 {[%clk 0:00:34]} 35. Qxe3 {[%clk 0:00:53]}  Qd7 {[%clk 0:00:35]} 36. Qxc5 {[%clk 0:00:52]}  Qd6 {[%clk 0:00:34]} 37. Qc3+ {[%clk 0:00:47]}  Qf6 {[%clk 0:00:34]} 38. Qe1 {[%clk 0:00:39]}  Rd7 {[%clk 0:00:33]} 39. Bf3 {[%clk 0:00:36]}  Re7 {[%clk 0:00:33]} 40. Qf1 {[%clk 0:00:34]}  Qd4 {[%clk 0:00:32]} 41. Bxc6 {[%clk 0:00:31]}  Qc3 {[%clk 0:00:32]} 42. Qf3 {[%clk 0:00:12]}  Qxc2 {[%clk 0:00:25]} 43. Be4 {[%clk 0:00:10]}  Bxe4 {[%clk 0:00:24]} 44. dxe4 {[%clk 0:00:10]}  Rxe4 {[%clk 0:00:24]} 45. h4 {[%clk 0:00:09]}  Re1+ {[%clk 0:00:24]} 46. Qf1 {[%clk 0:00:09]}  Rxf1# {[%clk 0:00:24]} 0-1